[Event "22nd ETCC Women 2019"]
[Site "Batumi"]
[Date "2019.10.25"]
[Round "2.5"]
[White "Atalik, Ekaterina"]
[Black "Dzagnidze, Nana"]
[Result "1/2-1/2"]
[ECO "D31"]
[WhiteElo "2464"]
[BlackElo "2502"]
[Annotator "ChessBase"]
[PlyCount "109"]
[EventDate "2019.10.24"]
[EventType "team-tourn"]
[EventCountry "GEO"]
[SourceTitle "playchess.com"]
[Source "ChessBase"]
[SourceQuality "1"]
[WhiteTeam "Turkey"]
[BlackTeam "Georgia"]
[WhiteTeamCountry "TUR"]
[BlackTeamCountry "GEO"]
[TimeControl "40/5400+30:1800+30"]

1. d4 {[%emt 0:00:00]} d5 {[%emt 0:00:00]} 2. c4 {[%emt 0:00:00]} e6 {[%emt 0:00:00]} 3. Nc3 {[%emt 0:00:34]} Bb4 {[%emt 0:00:24]} 4. Qa4+ {[%emt 0:01:36]} Nc6 {[%emt 0:00:12]} 5. e3 {[%emt 0:00:21]} Nf6 {[%emt 0:01:55]} 6. Nf3 {[%emt 0:00:40]} O-O {[%emt 0:00:27]} 7. Qc2 dxc4 {[%emt 0:12:34]} 8. Bxc4 {[%emt 0:00:35]} Bd6 {[%emt 0:00:21]} 9. O-O {[%emt 0:00:42]} e5 {[%emt 0:00:40]} 10. h3 {[%emt 0:07:01]} a6 {[%emt 0:15:05]} 11. Rd1 exd4 {[%emt 0:00:08]} 12. exd4 {[%emt 0:01:39]} b5 {[%emt 0:00:30]} 13. Bb3 {[%emt 0:02:05]} Na5 {[%emt 0:00:08]} 14. Bg5 {[%emt 0:02:45]} Nxb3 {[%emt 0:01:23]} 15. Qxb3 {[%emt 0:00:21]} Bb7 {[%emt 0:07:25]} 16. d5 {[%emt 0:10:36]} Re8 {[%emt 0:09:50]} 17. Rd4 {[%emt 0:06:22]} h6 {[%emt 0:09:02]} 18. Bxf6 {[%emt 0:02:04]} Qxf6 {[%emt 0:00:03]} 19. Ne4 {[%emt 0:00:46]} Qg6 {[%emt 0:06:57]} 20. Nxd6 {[%emt 0:13:01]} Qxd6 {[%emt 0:00:23]} 21. Rad1 {[%emt 0:03:15]} Rad8 {[%emt 0:03:28]} 22. Qc3 {[%emt 0:16:33]} Re7 {[%emt 0:03:36]} 23. b4 {[%emt 0:06:01]} Rde8 {[%emt 0:05:29]} 24. Qc5 {[%emt 0:04:37]} Re4 {[%emt 0:01:11]} 25. Qxd6 {[%emt 0:03:22]} cxd6 {[%emt 0:00:03]} 26. a3 {[%emt 0:01:04]} Kf8 {[%emt 0:06:04]} 27. R4d3 {[%emt 0:09:31]} Ke7 {[%emt 0:08:04]} 28. Nd4 {[%emt 0:00:26]} Kd7 {[%emt 0:00:19]} 29. Nf5 {[%emt 0:01:47]} Re1+ {[%emt 0:00:05]} 30. Rxe1 {[%emt 0:00:53]} Rxe1+ {[%emt 0:00:02]} 31. Kh2 {[%emt 0:00:05]} Re5 {[%emt 0:00:27]} 32. Ne3 {[%emt 0:00:56]} h5 {[%emt 0:04:04]} 33. g4 {[%emt 0:02:01]} hxg4 {[%emt 0:03:07]} 34. hxg4 {[%emt 0:00:22]} Re4 {[%emt 0:01:29]} 35. f3 {[%emt 0:03:39]} Re8 {[%emt 0:00:06]} 36. Kg3 {[%emt 0:01:19]} a5 {[%emt 0:00:46]} 37. bxa5 {[%emt 0:00:38]} Ra8 {[%emt 0:00:02]} 38. Nf5 {[%emt 0:00:25]} g6 {[%emt 0:00:20]} 39. Ne3 {[%emt 0:00:11]} Rxa5 {[%emt 0:00:45]} 40. g5 {[%emt 0:00:00]} Kc7 {[%emt 0:00:00]} 41. Ng4 {[%emt 0:09:06]} b4 {[%emt 0:09:06]} 42. axb4 {[%emt 0:00:15]} Rxd5 {[%emt 0:00:02]} 43. Rxd5 {[%emt 0:00:35]} Bxd5 {[%emt 0:00:05]} 44. Nf6 {[%emt 0:00:46]} Be6 {[%emt 0:08:18]} 45. Kf4 {[%emt 0:03:24]} Kc6 {[%emt 0:00:30]} 46. Ke4 {[%emt 0:13:47]} Kb5 {[%emt 0:02:10]} 47. Ne8 {[%emt 0:00:32]} Kxb4 {[%emt 0:02:55]} 48. Nxd6 {[%emt 0:00:05]} Kc5 {[%emt 0:00:08]} 49. Ke5 {[%emt 0:00:08]} Kc6 {[%emt 0:00:09]} 50. Ne4 {[%emt 0:01:37]} Bd5 {[%emt 0:02:55]} 51. Kf6 {[%emt 0:02:04]} Kd7 {[%emt 0:00:54]} 52. Nc5+ {[%emt 0:00:34]} Ke8 {[%emt 0:00:44]} 53. f4 {[%emt 0:00:08]} Kf8 {[%emt 0:01:59]} 54. Nd7+ {[%emt 0:00:10]} Kg8 {[%emt 0:00:50]} 55. Ne5 {[%emt 0:02:10]} 1/2-1/2

[Event "22nd ETCC Women 2019"]
[Site "Batumi"]
[Date "2019.10.25"]
[Round "2.5"]
[White "Olsarova, Karolina"]
[Black "Exler, Veronika"]
[Result "0-1"]
[ECO "B18"]
[WhiteElo "2294"]
[BlackElo "2222"]
[Annotator "RC"]
[PlyCount "162"]
[EventDate "2019.10.24"]
[EventType "team-tourn"]
[EventCountry "GEO"]
[SourceTitle "playchess.com"]
[Source "ChessBase"]
[SourceQuality "1"]
[WhiteTeam "Czech Republic"]
[BlackTeam "Austria"]
[WhiteTeamCountry "CZE"]
[BlackTeamCountry "AUT"]
[TimeControl "40/5400+30:1800+30"]

1. e4 {[%emt 0:00:00]} c6 {[%emt 0:00:00]} 2. d4 {[%emt 0:00:00]} d5 {[%emt 0:00:00]} 3. Nd2 {[%emt 0:00:00]} dxe4 {[%emt 0:00:00]} 4. Nxe4 {[%emt 0:00:00]} Bf5 {[%emt 0:00:00]} 5. Ng3 {[%emt 0:00:02]} Bg6 {[%emt 0:00:00]} 6. h4 {[%emt 0:00:10]} h6 {[%emt 0:00:00]} 7. Nf3 {[%emt 0:00:09]} e6 {[%emt 0:00:12]} 8. Ne5 {[%emt 0:06:43]} Bh7 {[%emt 0:00:42]} 9. f4 {[%emt 0:03:07]} Nd7 {[%emt 0:01:38]} 10. Bd3 {[%emt 0:06:47]} Bxd3 {[%emt 0:00:08]} 11. Qxd3 {[%emt 0:00:08]} Nxe5 {[%emt 0:07:26]} 12. fxe5 {[%emt 0:00:11]} Be7 {[%emt 0:00:07]} 13. O-O {[%emt 0:11:50]} Bxh4 {[%emt 0:22:42]} 14. Ne4 {[%emt 0:02:18]} Be7 {[%emt 0:02:02]} 15. Be3 {[%emt 0:12:55]} Qd7 {[%emt 0:15:40]} 16. Rae1 {[%emt 0:12:05]} f5 {[%emt 0:01:27]} 17. exf6 {[%emt 0:02:05]} Nxf6 {[%emt 0:00:08]} 18. Bf4 {[%emt 0:13:50]} O-O {[%emt 0:14:29]} 19. Nd2 {[%emt 0:10:54]} Bd6 {[%emt 0:14:38]} 20. Bxd6 {[%emt 0:03:04]} Qxd6 {[%emt 0:00:01]} 21. Nc4 {[%emt 0:00:16]} Qd5 {[%emt 0:00:32]} 22. Re5 {[%emt 0:03:05]} Qd7 {[%emt 0:00:22]} 23. Rfe1 {[%emt 0:03:35]} Rae8 {[%emt 0:00:37]} 24. c3 {[%emt 0:02:46]} Ng4 {[%emt 0:07:00]} 25. R5e2 {[%emt 0:00:55]} Qc7 {[%emt 0:02:34]} 26. Qh3 {[%emt 0:01:25]} Qf4 {[%emt 0:01:01]} 27. g3 {[%emt 0:01:16]} Qf3 {[%emt 0:03:39]} 28. Nd2 {[%emt 0:00:55]} Qf5 {[%emt 0:02:22]} 29. Ne4 {[%emt 0:02:12]} Re7 {[%emt 0:00:55]} 30. Nd6 {[%emt 0:00:45]} Qf3 {[%emt 0:01:31]} 31. Qg2 {[%emt 0:00:49]} Qd3 {[%emt 0:02:18]} 32. Rd2 {[%emt 0:00:49]} Qg6 {[%emt 0:00:27]} 33. Rde2 {[%emt 0:00:37]} Qd3 {[%emt 0:00:10]} 34. Rd2 {[%emt 0:00:02]} Qg6 {[%emt 0:00:09]} 35. Rde2 {[%emt 0:00:01]} Rd8 {[%emt 0:01:56]} 36. Nc4 {[%emt 0:00:58]} Qd3 {[%emt 0:00:33]} 37. Ne5 {[%emt 0:01:07]} Nxe5 {[%emt 0:00:20]} 38. Rxe5 {[%emt 0:00:03]} Rf8 {[%emt 0:00:23]} 39. R5e3 {[%emt 0:00:40]} Qf5 {[%emt 0:00:22]} 40. Qe2 {[%emt 0:00:00]} Rf6 {[%emt 0:00:00]} 41. Re5 {[%emt 0:05:36]} Qh3 {[%emt 0:05:07]} 42. Qg2 {[%emt 0:00:37]} Qg4 {[%emt 0:06:30]} 43. R5e4 {[%emt 0:00:58]} Qg6 {[%emt 0:00:39]} 44. R1e3 {[%emt 0:05:18]} Ref7 {[%emt 0:03:12]} 45. b3 {[%emt 0:08:51]} Qf5 {[%emt 0:07:09]} 46. Re2 {[%emt 0:00:54]} Rg6 {[%emt 0:02:58]} 47. Kh2 {[%emt 0:03:28]} Rff6 {[%emt 0:02:29]} 48. Re5 {[%emt 0:02:35]} Qg4 {[%emt 0:02:08]} 49. R2e4 {[%emt 0:01:32]} Qf3 {[%emt 0:01:37]} 50. Re3 {[%emt 0:00:23]} Qxg2+ {[%emt 0:00:56]} 51. Kxg2 {[%emt 0:00:01]} Kf7 {[%emt 0:00:07]} 52. c4 {[%emt 0:02:18]} Rf5 {[%emt 0:00:12]} 53. R5e4 {[%emt 0:00:33]} Rgf6 {[%emt 0:00:16]} 54. Re2 {[%emt 0:00:27]} h5 {[%emt 0:01:05]} 55. Kh3 {[%emt 0:01:42]} Rg6 {[%emt 0:02:43]} 56. R4e3 {[%emt 0:01:06]} Ke7 {[%emt 0:00:43]} 57. b4 {[%emt 0:02:14]} Kd6 {[%emt 0:00:35]} 58. Ra3 {[%emt 0:00:56]} a6 {[%emt 0:00:11]} 59. Rae3 {[%emt 0:00:24]} Rf1 {[%emt 0:01:24]} 60. Kg2 {[%emt 0:00:29]} Rd1 {[%emt 0:00:31]} 61. Re4 {[%emt 0:00:57]} Rd3 {[%emt 0:00:09]} 62. R2e3 {[%emt 0:00:22]} Rxe3 {[%emt 0:00:13]} 63. Rxe3 {[%emt 0:00:01]} h4 {[%emt 0:00:21]} 64. Re5 {[%emt 0:01:05]} Rxg3+ {[%emt 0:00:07]} 65. Kf2 {[%emt 0:00:02]} g5 {[%emt 0:01:30]} 66. b5 {[%emt 0:00:18]} cxb5 {[%emt 0:00:59]} 67. cxb5 {[%emt 0:00:05]} a5 {[%emt 0:00:35]} 68. b6 {[%emt 0:00:43]} a4 {[%emt 0:00:06]} 69. Rc5 {[%emt 0:00:16]} g4 {[%emt 0:00:20]} 70. Rc7 {[%emt 0:00:57]} Ra3 {[%emt 0:00:15]} 71. Rxb7 {[%emt 0:00:27]} Rxa2+ {[%emt 0:00:04]} 72. Ke3 {[%emt 0:00:13]} h3 {[%emt 0:01:21]} 73. Kf4 {[%emt 0:01:21]} Kc6 {[%emt 0:00:43]} 74. Re7 {[%emt 0:00:19]} Kxb6 {[%emt 0:00:35]} 75. Rxe6+ {[%emt 0:00:02]} Kc7 {[%emt 0:00:24]} 76. Kxg4 {[%emt 0:00:23]} h2 {[%emt 0:00:26]} 77. Rh6 {[%emt 0:00:24]} a3 {[%emt 0:00:32]} 78. Kf3 {[%emt 0:00:46]} Rb2 {[%emt 0:00:30]} 79. d5 {[%emt 0:00:17]} a2 {[%emt 0:00:11]} 80. Rc6+ {[%emt 0:00:05]} Kd7 {[%emt 0:00:19]} 81. Rc1 {[%emt 0:00:06]} Rb1 {[%emt 0:00:22]} 0-1

[Event "22nd ETCC Women 2019"]
[Site "Batumi"]
[Date "2019.10.25"]
[Round "2.6"]
[White "Javakhishvili, Lela"]
[Black "Yildiz Kadioglu, Betul Cemre"]
[Result "1-0"]
[ECO "D21"]
[WhiteElo "2457"]
[BlackElo "2338"]
[Annotator "ChessBase"]
[PlyCount "57"]
[EventDate "2019.10.24"]
[EventType "team-tourn"]
[EventCountry "GEO"]
[SourceTitle "playchess.com"]
[Source "ChessBase"]
[SourceQuality "1"]
[WhiteTeam "Georgia"]
[BlackTeam "Turkey"]
[WhiteTeamCountry "GEO"]
[BlackTeamCountry "TUR"]
[TimeControl "40/5400+30:1800+30"]

1. d4 {[%emt 0:00:00]} d5 {[%emt 0:00:00]} 2. c4 {[%emt 0:00:00]} dxc4 {[%emt 0:00:00]} 3. Nf3 {[%emt 0:07:09]} c5 4. e4 {[%emt 0:00:07]} cxd4 {[%emt 0:00:51]} 5. Bxc4 {[%emt 0:00:08]} Nc6 {[%emt 0:03:29]} 6. O-O {[%emt 0:00:30]} e6 {[%emt 0:03:14]} 7. Nbd2 {[%emt 0:07:46]} Bc5 {[%emt 0:07:51]} 8. e5 {[%emt 0:02:43]} Bb6 {[%emt 0:10:10]} 9. b4 Nge7 {[%emt 0:05:29]} 10. b5 {[%emt 0:08:38]} Nb4 {[%emt 0:10:21]} 11. Ne4 {[%emt 0:03:44]} O-O {[%emt 0:09:40]} 12. Ba3 {[%emt 0:17:48]} a5 {[%emt 0:03:40]} 13. bxa6 Nbc6 {[%emt 0:11:09]} 14. Bd3 {[%emt 0:08:21]} bxa6 {[%emt 0:11:17]} 15. Rc1 f6 {[%emt 0:00:05]} 16. exf6 {[%emt 0:09:02]} gxf6 17. Qd2 {[%emt 0:00:56]} Rf7 {[%emt 0:04:11]} 18. Nd6 {[%emt 0:04:47]} Rg7 {[%emt 0:01:22]} 19. Bc4 {[%emt 0:03:31]} Bd7 {[%emt 0:10:47]} 20. Qe2 {[%emt 0:01:56]} Nd5 {[%emt 0:04:04]} 21. Qe4 {[%emt 0:04:21]} Nc7 {[%emt 0:01:00]} 22. Nf5 Rg6 23. Rfd1 {[%emt 0:01:54]} Kh8 {[%emt 0:01:39]} 24. N5xd4 {[%emt 0:00:42]} Nxd4 {[%emt 0:00:18]} 25. Nxd4 {[%emt 0:00:07]} Qe8 {[%emt 0:00:38]} 26. Be2 {[%emt 0:03:35]} Rg5 {[%emt 0:01:01]} 27. Nf3 {[%emt 0:01:45]} Rd5 {[%emt 0:00:38]} 28. Bb2 Qe7 {[%emt 0:00:28]} 29. Rxc7 {[%emt 0:03:06]} 1-0

[Event "22nd ETCC Women 2019"]
[Site "Batumi"]
[Date "2019.10.25"]
[Round "2.6"]
[White "Trippold, Denise"]
[Black "Petrova, Kristyna"]
[Result "1/2-1/2"]
[ECO "D90"]
[WhiteElo "2180"]
[BlackElo "2259"]
[Annotator "NA"]
[PlyCount "64"]
[EventDate "2019.10.24"]
[EventType "team-tourn"]
[EventCountry "GEO"]
[SourceTitle "playchess.com"]
[Source "ChessBase"]
[SourceQuality "1"]
[WhiteTeam "Austria"]
[BlackTeam "Czech Republic"]
[WhiteTeamCountry "AUT"]
[BlackTeamCountry "CZE"]
[TimeControl "40/5400+30:1800+30"]

1. d4 {[%emt 0:00:00]} Nf6 {[%emt 0:00:00]} 2. c4 {[%emt 0:00:00]} g6 {[%emt 0:00:00]} 3. Nc3 {[%emt 0:00:00]} d5 {[%emt 0:00:00]} 4. Nf3 {[%emt 0:00:07]} Bg7 {[%emt 0:00:00]} 5. h4 {[%emt 0:00:15]} c5 {[%emt 0:06:50]} 6. dxc5 {[%emt 0:04:57]} Qa5 {[%emt 0:00:51]} 7. cxd5 {[%emt 0:09:16]} Ne4 {[%emt 0:09:50]} 8. Bd2 {[%emt 0:06:44]} Nxd2 {[%emt 0:11:31]} 9. Qxd2 {[%emt 0:00:36]} Qxc5 {[%emt 0:00:05]} 10. e4 {[%emt 0:08:40]} O-O {[%emt 0:00:23]} 11. Rc1 {[%emt 0:01:09]} Qb6 {[%emt 0:11:44]} 12. h5 {[%emt 0:09:21]} Bg4 {[%emt 0:11:52]} 13. h6 {[%emt 0:01:16]} Bh8 {[%emt 0:00:08]} 14. Be2 {[%emt 0:02:10]} Nd7 {[%emt 0:02:08]} 15. O-O {[%emt 0:01:59]} a6 {[%emt 0:01:29]} 16. Ng5 {[%emt 0:12:29]} Bxe2 {[%emt 0:12:07]} 17. Qxe2 {[%emt 0:00:08]} Bf6 {[%emt 0:03:15]} 18. Nf3 {[%emt 0:02:55]} Qd6 {[%emt 0:00:51]} 19. Qe3 {[%emt 0:02:17]} Rac8 {[%emt 0:01:34]} 20. Rfe1 {[%emt 0:17:02]} Be5 {[%emt 0:03:11]} 21. Nxe5 {[%emt 0:00:49]} Nxe5 {[%emt 0:00:02]} 22. f3 {[%emt 0:08:24]} f6 {[%emt 0:03:56]} 23. Ne2 {[%emt 0:01:41]} Nf7 {[%emt 0:04:30]} 24. Rxc8 {[%emt 0:01:59]} Rxc8 {[%emt 0:00:02]} 25. Rc1 {[%emt 0:00:43]} Rxc1+ {[%emt 0:02:14]} 26. Qxc1 {[%emt 0:00:01]} Qb6+ {[%emt 0:00:55]} 27. Kh1 {[%emt 0:00:15]} Nd6 {[%emt 0:00:09]} 28. Nf4 {[%emt 0:06:22]} Kf7 {[%emt 0:01:34]} 29. Ne6 {[%emt 0:00:04]} Qf2 {[%emt 0:01:51]} 30. Qc7 {[%emt 0:01:31]} Qh4+ {[%emt 0:01:30]} 31. Kg1 {[%emt 0:00:01]} Qe1+ {[%emt 0:02:41]} 32. Kh2 {[%emt 0:00:01]} Qh4+ {[%emt 0:00:16]} 1/2-1/2

[Event "22nd ETCC Women 2019"]
[Site "Batumi"]
[Date "2019.10.25"]
[Round "2.7"]
[White "Ozturk, Kubra"]
[Black "Arabidze, Meri"]
[Result "0-1"]
[ECO "D30"]
[WhiteElo "2317"]
[BlackElo "2398"]
[Annotator "NA"]
[PlyCount "98"]
[EventDate "2019.10.24"]
[EventType "team-tourn"]
[EventCountry "GEO"]
[SourceTitle "playchess.com"]
[Source "ChessBase"]
[SourceQuality "1"]
[WhiteTeam "Turkey"]
[BlackTeam "Georgia"]
[WhiteTeamCountry "TUR"]
[BlackTeamCountry "GEO"]
[TimeControl "40/5400+30:1800+30"]

1. d4 {[%emt 0:00:00]} d5 {[%emt 0:00:00]} 2. c4 {[%emt 0:00:00]} e6 {[%emt 0:00:00]} 3. Nf3 {[%emt 0:00:54]} Nf6 {[%emt 0:00:01]} 4. g3 {[%emt 0:00:37]} Bb4+ {[%emt 0:00:25]} 5. Bd2 {[%emt 0:00:11]} Be7 {[%emt 0:00:14]} 6. Bg2 {[%emt 0:00:31]} O-O {[%emt 0:00:20]} 7. O-O {[%emt 0:05:31]} Nbd7 {[%emt 0:00:17]} 8. Qc2 {[%emt 0:01:29]} Ne4 {[%emt 0:00:27]} 9. Bf4 {[%emt 0:00:54]} c6 {[%emt 0:01:03]} 10. Nc3 {[%emt 0:02:12]} g5 {[%emt 0:00:54]} 11. Bc1 {[%emt 0:03:05]} f5 {[%emt 0:01:26]} 12. cxd5 {[%emt 0:04:20]} exd5 {[%emt 0:04:11]} 13. Ne1 {[%emt 0:12:58]} Bf6 {[%emt 0:02:49]} 14. e3 {[%emt 0:01:06]} g4 {[%emt 0:10:52]} 15. Nd3 {[%emt 0:08:46]} Rf7 {[%emt 0:02:42]} 16. f3 {[%emt 0:21:19]} gxf3 {[%emt 0:02:04]} 17. Rxf3 {[%emt 0:00:10]} Nf8 {[%emt 0:03:35]} 18. Bd2 {[%emt 0:05:13]} Ng6 {[%emt 0:10:25]} 19. Ne2 {[%emt 0:02:03]} Qe8 {[%emt 0:07:55]} 20. b4 {[%emt 0:11:42]} b6 {[%emt 0:12:49]} 21. Rc1 {[%emt 0:01:49]} Bd7 {[%emt 0:02:43]} 22. Nef4 {[%emt 0:02:20]} Rc8 {[%emt 0:01:15]} 23. Qd1 {[%emt 0:01:28]} Bh8 {[%emt 0:08:09]} 24. h4 {[%emt 0:04:51]} Qf8 {[%emt 0:10:39]} 25. Be1 {[%emt 0:01:55]} Qd6 {[%emt 0:00:40]} 26. Qb3 {[%emt 0:02:09]} b5 {[%emt 0:03:19]} 27. Qd1 {[%emt 0:03:40]} Re8 {[%emt 0:01:54]} 28. Rc2 {[%emt 0:01:29]} Bg7 {[%emt 0:02:32]} 29. h5 {[%emt 0:00:40]} Nf8 {[%emt 0:02:32]} 30. Qc1 {[%emt 0:00:24]} Ne6 {[%emt 0:03:02]} 31. Nxe6 {[%emt 0:00:28]} Qxe6 {[%emt 0:00:39]} 32. Nf4 {[%emt 0:00:42]} Qd6 {[%emt 0:01:11]} 33. Rf1 {[%emt 0:00:34]} Rfe7 {[%emt 0:01:00]} 34. Bxe4 {[%emt 0:00:44]} Rxe4 {[%emt 0:02:36]} 35. Bf2 {[%emt 0:00:40]} Bh6 {[%emt 0:00:26]} 36. a3 {[%emt 0:00:23]} R8e7 {[%emt 0:01:27]} 37. Kg2 {[%emt 0:00:21]} Rg7 {[%emt 0:01:09]} 38. Bg1 {[%emt 0:00:38]} Qf6 {[%emt 0:00:32]} 39. Rf3 {[%emt 0:00:36]} Be8 {[%emt 0:00:31]} 40. Bf2 {[%emt 0:00:00]} Qd6 {[%emt 0:00:00]} 41. Kf1 {[%emt 0:04:07]} Qf6 {[%emt 0:08:50]} 42. Rc5 {[%emt 0:06:25]} Rge7 {[%emt 0:06:35]} 43. Qc2 {[%emt 0:11:52]} Bg5 {[%emt 0:05:53]} 44. Rc3 {[%emt 0:05:23]} Qh6 {[%emt 0:01:50]} 45. Ng2 {[%emt 0:01:48]} Qxh5 {[%emt 0:02:40]} 46. Ne1 {[%emt 0:01:39]} Qh3+ {[%emt 0:02:00]} 47. Kg1 {[%emt 0:00:51]} Bh5 {[%emt 0:00:47]} 48. Qc1 {[%emt 0:01:42]} Bxf3 {[%emt 0:04:42]} 49. Nxf3 {[%emt 0:00:03]} Bxe3 {[%emt 0:00:28]} 0-1

[Event "22nd ETCC Women 2019"]
[Site "Batumi"]
[Date "2019.10.25"]
[Round "2.7"]
[White "Sikorova, Olga"]
[Black "Novkovic, Julia"]
[Result "0-1"]
[ECO "A26"]
[WhiteElo "2234"]
[BlackElo "2146"]
[Annotator "NA"]
[PlyCount "66"]
[EventDate "2019.10.24"]
[EventType "team-tourn"]
[EventCountry "GEO"]
[SourceTitle "playchess.com"]
[Source "ChessBase"]
[SourceQuality "1"]
[WhiteTeam "Czech Republic"]
[BlackTeam "Austria"]
[WhiteTeamCountry "CZE"]
[BlackTeamCountry "AUT"]
[TimeControl "40/5400+30:1800+30"]

1. c4 {[%emt 0:00:00]} e5 {[%emt 0:00:00]} 2. g3 {[%emt 0:00:00]} Nc6 {[%emt 0:01:05]} 3. Bg2 {[%emt 0:00:00]} g6 {[%emt 0:00:15]} 4. Nc3 {[%emt 0:00:06]} Bg7 {[%emt 0:00:23]} 5. d3 {[%emt 0:00:33]} d6 {[%emt 0:00:53]} 6. e4 {[%emt 0:00:36]} Nh6 {[%emt 0:03:47]} 7. h3 {[%emt 0:06:42]} O-O {[%emt 0:01:06]} 8. Be3 {[%emt 0:00:48]} f5 {[%emt 0:02:07]} 9. Qd2 {[%emt 0:02:13]} Nf7 {[%emt 0:02:05]} 10. Nge2 {[%emt 0:10:52]} Nd4 {[%emt 0:01:54]} 11. f4 {[%emt 0:06:39]} fxe4 {[%emt 0:06:42]} 12. dxe4 {[%emt 0:15:06]} Nxe2 {[%emt 0:08:30]} 13. Qxe2 {[%emt 0:15:16]} exf4 {[%emt 0:04:28]} 14. gxf4 {[%emt 0:01:02]} Qh4+ {[%emt 0:04:25]} 15. Kd2 {[%emt 0:03:58]} Bh6 {[%emt 0:07:53]} 16. Raf1 {[%emt 0:02:09]} Nd8 {[%emt 0:01:01]} 17. Qf2 {[%emt 0:04:21]} Qf6 {[%emt 0:16:07]} 18. Rhg1 {[%emt 0:05:40]} Be6 {[%emt 0:01:55]} 19. Kd3 {[%emt 0:12:20]} Nc6 {[%emt 0:05:30]} 20. Nd5 {[%emt 0:01:15]} Bxd5 {[%emt 0:04:48]} 21. cxd5 {[%emt 0:00:21]} Nb4+ {[%emt 0:00:16]} 22. Kc4 {[%emt 0:00:39]} c5 {[%emt 0:03:11]} 23. Qd2 {[%emt 0:06:22]} b5+ {[%emt 0:03:13]} 24. Kb3 {[%emt 0:00:53]} a5 {[%emt 0:00:49]} 25. a4 {[%emt 0:00:11]} c4+ {[%emt 0:04:28]} 26. Ka3 {[%emt 0:00:01]} Nc2+ {[%emt 0:00:12]} 27. Ka2 {[%emt 0:00:45]} b4 {[%emt 0:02:53]} 28. b3 {[%emt 0:03:00]} cxb3+ {[%emt 0:03:14]} 29. Kxb3 {[%emt 0:00:06]} Rac8 {[%emt 0:00:58]} 30. e5 {[%emt 0:00:39]} Qf5 {[%emt 0:01:54]} 31. Bb6 {[%emt 0:01:03]} Rc3+ {[%emt 0:00:43]} 32. Ka2 {[%emt 0:00:56]} Qd7 {[%emt 0:02:02]} 33. Kb2 {[%emt 0:01:20]} Qxa4 {[%emt 0:00:20]} 0-1

[Event "22nd ETCC Women 2019"]
[Site "Batumi"]
[Date "2019.10.25"]
[Round "2.8"]
[White "Melia, Salome"]
[Black "Caglar, Sila"]
[Result "1-0"]
[ECO "B47"]
[WhiteElo "2380"]
[BlackElo "2242"]
[Annotator "NA"]
[PlyCount "73"]
[EventDate "2019.10.24"]
[EventType "team-tourn"]
[EventCountry "GEO"]
[SourceTitle "playchess.com"]
[Source "ChessBase"]
[SourceQuality "1"]
[WhiteTeam "Georgia"]
[BlackTeam "Turkey"]
[WhiteTeamCountry "GEO"]
[BlackTeamCountry "TUR"]
[TimeControl "40/5400+30:1800+30"]

1. e4 {[%emt 0:00:00]} c5 {[%emt 0:00:00]} 2. Nf3 {[%emt 0:00:00]} e6 {[%emt 0:00:00]} 3. d4 {[%emt 0:00:00]} cxd4 {[%emt 0:00:00]} 4. Nxd4 {[%emt 0:00:00]} Nc6 5. Nc3 {[%emt 0:00:13]} Qc7 {[%emt 0:00:03]} 6. g3 {[%emt 0:00:36]} Nf6 {[%emt 0:01:35]} 7. Ndb5 {[%emt 0:01:06]} Qb8 {[%emt 0:01:04]} 8. Bf4 {[%emt 0:00:06]} e5 {[%emt 0:01:54]} 9. Bg5 {[%emt 0:00:07]} a6 {[%emt 0:01:48]} 10. Bxf6 {[%emt 0:00:08]} axb5 {[%emt 0:01:36]} 11. Bg5 {[%emt 0:00:50]} b4 {[%emt 0:01:47]} 12. Nd5 {[%emt 0:05:15]} Bc5 {[%emt 0:05:36]} 13. Bc4 {[%emt 0:19:08]} d6 {[%emt 0:10:06]} 14. Qh5 {[%emt 0:10:32]} Be6 {[%emt 0:30:00]} 15. Nf6+ {[%emt 0:11:19]} gxf6 {[%emt 0:01:21]} 16. Bxe6 {[%emt 0:00:08]} Rf8 {[%emt 0:04:47]} 17. Bxf6 {[%emt 0:10:15]} Nd4 {[%emt 0:09:00]} 18. Bb3 {[%emt 0:08:48]} Nxb3 {[%emt 0:01:52]} 19. cxb3 {[%emt 0:00:03]} Rg8 {[%emt 0:14:45]} 20. O-O {[%emt 0:08:10]} Rg6 {[%emt 0:01:35]} 21. Bh4 {[%emt 0:02:26]} h6 {[%emt 0:03:48]} 22. Kg2 {[%emt 0:03:26]} Qc8 {[%emt 0:01:45]} 23. h3 {[%emt 0:01:04]} Qc6 {[%emt 0:01:49]} 24. Qf3 {[%emt 0:01:44]} Kf8 {[%emt 0:03:47]} 25. Rfc1 {[%emt 0:02:29]} Qb6 {[%emt 0:01:22]} 26. a4 {[%emt 0:03:13]} bxa3 {[%emt 0:01:07]} 27. bxa3 {[%emt 0:00:10]} Kg7 {[%emt 0:00:32]} 28. b4 {[%emt 0:01:28]} Bd4 {[%emt 0:00:04]} 29. Ra2 {[%emt 0:00:16]} Rf8 {[%emt 0:00:53]} 30. Rac2 {[%emt 0:01:03]} d5 {[%emt 0:00:32]} 31. exd5 {[%emt 0:01:29]} f5 {[%emt 0:00:18]} 32. Rc7+ {[%emt 0:02:19]} Kg8 {[%emt 0:00:07]} 33. d6 {[%emt 0:02:45]} e4 {[%emt 0:01:01]} 34. Qb3+ {[%emt 0:03:07]} Kh8 {[%emt 0:00:07]} 35. d7 {[%emt 0:00:53]} Bxf2 {[%emt 0:00:47]} 36. d8=Q {[%emt 0:01:53]} Rxd8 {[%emt 0:00:15]} 37. Qf7 {[%emt 0:00:44]} 1-0

[Event "22nd ETCC Women 2019"]
[Site "Batumi"]
[Date "2019.10.25"]
[Round "2.8"]
[White "Polterauer, Chiara"]
[Black "Miturova, Magdalena"]
[Result "0-1"]
[ECO "C50"]
[WhiteElo "2172"]
[BlackElo "2179"]
[Annotator "NA"]
[PlyCount "68"]
[EventDate "2019.10.24"]
[EventType "team-tourn"]
[EventCountry "GEO"]
[SourceTitle "playchess.com"]
[Source "ChessBase"]
[SourceQuality "1"]
[WhiteTeam "Austria"]
[BlackTeam "Czech Republic"]
[WhiteTeamCountry "AUT"]
[BlackTeamCountry "CZE"]
[TimeControl "40/5400+30:1800+30"]

1. e4 {[%emt 0:00:00]} e5 {[%emt 0:00:00]} 2. Nf3 {[%emt 0:00:00]} Nc6 {[%emt 0:00:00]} 3. Bc4 {[%emt 0:00:00]} Nf6 {[%emt 0:00:00]} 4. d3 {[%emt 0:00:00]} Bc5 {[%emt 0:00:14]} 5. c3 {[%emt 0:00:41]} O-O {[%emt 0:00:39]} 6. Bg5 {[%emt 0:00:46]} h6 {[%emt 0:01:40]} 7. Bh4 {[%emt 0:00:15]} Be7 {[%emt 0:00:36]} 8. Nbd2 {[%emt 0:00:58]} d6 {[%emt 0:03:06]} 9. Bb3 {[%emt 0:06:07]} Nd7 {[%emt 0:03:55]} 10. Bxe7 {[%emt 0:06:16]} Qxe7 {[%emt 0:11:42]} 11. O-O {[%emt 0:00:41]} Nc5 {[%emt 0:04:28]} 12. Bc2 {[%emt 0:01:38]} Bg4 {[%emt 0:04:13]} 13. Nc4 {[%emt 0:11:13]} Rae8 {[%emt 0:13:02]} 14. Ne3 {[%emt 0:05:38]} Bh5 {[%emt 0:00:14]} 15. Nd5 {[%emt 0:00:38]} Qd8 {[%emt 0:01:26]} 16. Qe2 {[%emt 0:06:55]} f5 {[%emt 0:07:27]} 17. b4 {[%emt 0:44:40]} fxe4 {[%emt 0:11:19]} 18. dxe4 {[%emt 0:02:36]} Ne6 {[%emt 0:04:17]} 19. Qe3 {[%emt 0:03:18]} Bxf3 {[%emt 0:07:58]} 20. gxf3 {[%emt 0:00:03]} Ng5 {[%emt 0:06:02]} 21. Bd1 {[%emt 0:00:12]} Ne7 {[%emt 0:01:58]} 22. Nxe7+ {[%emt 0:01:04]} Qxe7 {[%emt 0:01:51]} 23. Kh1 {[%emt 0:03:23]} Qf6 {[%emt 0:04:04]} 24. Rg1 {[%emt 0:01:48]} Nxf3 {[%emt 0:01:31]} 25. Rg3 {[%emt 0:01:05]} Ng5 {[%emt 0:01:37]} 26. f3 {[%emt 0:01:53]} b6 {[%emt 0:02:54]} 27. Be2 {[%emt 0:00:32]} Qf4 {[%emt 0:01:48]} 28. Qxf4 {[%emt 0:00:44]} Rxf4 {[%emt 0:00:12]} 29. Kg2 {[%emt 0:00:40]} Ref8 {[%emt 0:01:01]} 30. Rh1 {[%emt 0:00:34]} Kh8 {[%emt 0:02:45]} 31. h4 {[%emt 0:00:33]} Nxe4 {[%emt 0:00:33]} 32. fxe4 {[%emt 0:00:08]} Rf2+ {[%emt 0:00:03]} 33. Kh3 {[%emt 0:00:04]} Rxe2 {[%emt 0:00:06]} 34. Rhg1 {[%emt 0:00:11]} Rff2 {[%emt 0:01:13]} 0-1